fUST/lending_fUST_20250614
["ID","MTS","AMOUNT","RATE_DAILY","PERIOD"]
[365778972,1749907846130,-460.0,0.00023013,4]
[365778973,1749907846139,-460.0,0.00023013,4]
[365778974,1749907846150,-460.0,0.00023013,4]
[365778975,1749907846160,-460.0,0.00023013,4]
[365778976,1749907846171,-460.0,0.00023013,4]
[365778977,1749907846182,-460.0,0.00023013,4]
[365778978,1749907846192,-460.0,0.00023013,4]
[365778979,1749907846201,-541.05,0.00023013,4]
[365778980,1749907846212,-460.0,0.00023013,4]
[365778981,1749907846222,-460.0,0.00023013,4]
[365778982,1749907846232,-504.23576132,0.00023013,4]
[365778983,1749907846243,-460.0,0.00023013,4]
[365778984,1749907846252,-460.0,0.00023013,4]
[365778985,1749907846263,-460.0,0.00023013,4]
[365778986,1749907846274,-460.0,0.00023013,4]
[365778987,1749907846285,-460.0,0.00023013,4]
[365778988,1749907846295,-460.0,0.00023013,4]
[365778989,1749907846305,-460.0,0.00023013,4]
[365778990,1749907846315,-460.0,0.00023013,4]
[365778991,1749907846324,-300.0,0.00023013,4]
[365778992,1749907846334,-460.0,0.00023013,4]
[365778993,1749907846343,-460.0,0.00023013,4]
[365778994,1749907846359,-460.0,0.00023013,4]
[365778995,1749907846368,-460.0,0.00023013,4]
[365778996,1749907846378,-460.0,0.00023013,4]
[365778997,1749907846388,-460.0,0.00023013,4]
[365778998,1749907846398,-460.0,0.00023013,4]
[365778999,1749907846407,-460.0,0.00023013,4]
[365779000,1749907846417,-310.0,0.00023013,4]
[365779001,1749907846427,-460.0,0.00023013,4]
[365779002,1749907846437,-460.0,0.00023013,2]
[365779003,1749907846447,-1726.2,0.00023013,4]
[365779004,1749907846457,-460.0,0.00023013,4]
[365779005,1749907846466,-460.0,0.00023013,4]
[365779006,1749907846476,-460.0,0.00023013,4]
[365779007,1749907846485,-460.0,0.00023013,4]
[365779008,1749907846495,-460.0,0.00023013,4]
[365779009,1749907846505,-460.0,0.00023013,4]
[365779010,1749907846514,-460.0,0.00023013,4]
[365779011,1749907846524,-1116.26,0.00023013,4]
[365779012,1749907846534,-460.0,0.00023013,4]
[365779013,1749907846544,-460.0,0.00023013,4]
[365779014,1749907846553,-460.0,0.00023013,4]
[365779015,1749907846563,-1164.33,0.00023013,4]
[365779016,1749907846572,-460.0,0.00023013,4]
[365779017,1749907846582,-460.0,0.00023013,4]
[365779018,1749907846593,-967.63,0.00023013,4]
[365779019,1749907846603,-460.0,0.00023013,4]
[365779020,1749907846613,-460.0,0.00023013,4]
[365779021,1749907846622,-460.0,0.00023013,4]
[365779022,1749907846631,-440.0,0.00023013,4]
[365779023,1749907846642,-460.0,0.00023013,4]
[365779024,1749907846651,-460.0,0.00023013,4]
[365779025,1749907846661,-460.0,0.00023013,4]
[365779026,1749907846670,-1309.35,0.00023013,4]
[365779027,1749907846680,-460.0,0.00023013,4]
[365779028,1749907846689,-2860.28,0.00023013,4]
[365779029,1749907846699,-460.0,0.00023013,4]
[365779030,1749907846708,-460.0,0.00023013,4]
[365779031,1749907846718,-460.0,0.00023013,4]
[365779032,1749907846728,-1665.69,0.00023013,4]
[365779033,1749907846813,-460.0,0.00023013,4]
[365779034,1749907846823,-460.0,0.00023013,4]
[365779035,1749907846838,-460.0,0.00023013,4]
[365779036,1749907846847,-460.0,0.00023013,4]
[365779037,1749907846859,-460.0,0.00023013,4]
[365779038,1749907846868,-460.0,0.00023013,4]
[365779039,1749907846878,-460.0,0.00023013,4]
[365779040,1749907846888,-659.23,0.00023013,4]
[365779041,1749907846898,-460.0,0.00023013,4]
[365779042,1749907846907,-318.64818622,0.00023013,4]
[365779043,1749907846916,-460.0,0.00023013,4]
[365779044,1749907846925,-460.0,0.00023013,4]
[365779045,1749907846935,-460.0,0.00023013,4]
[365779046,1749907846946,-460.0,0.00023013,4]
[365779047,1749907846956,-460.0,0.00023013,4]
[365779048,1749907846965,-390.0,0.00023013,4]
[365779049,1749907846975,-460.0,0.00023013,4]
[365779050,1749907846985,-460.0,0.00023013,4]
[365779051,1749907846995,-1153.73,0.00023013,4]
[365779052,1749907847004,-460.0,0.00023013,4]
[365779053,1749907847014,-460.0,0.00023013,4]
[365779054,1749907847023,-460.0,0.00023013,4]
[365779055,1749907847033,-817.31,0.00023013,4]
[365779056,1749907847042,-460.0,0.00023013,4]
[365779057,1749907847052,-1298.61,0.00023013,4]
[365779058,1749907847062,-460.0,0.00023013,4]
[365779059,1749907847071,-460.0,0.00023013,4]
[365779060,1749907847081,-460.0,0.00023013,4]
[365779061,1749907847092,-1000.0,0.00023021,2]
[365779062,1749907847101,-1000.0,0.00023021,2]
[365779063,1749907847111,-203.21945003,0.00023025,8]
[365779064,1749907847121,-329.0,0.00023098,2]
[365779065,1749907847131,-168.0,0.00023115,2]
[365779066,1749907847145,-203.21945003,0.0002315,8]
[365779067,1749907847156,-964.0,0.00023207,2]
[365779068,1749907847166,-223.314,0.00023207,2]
[365779069,1749907847176,-405.0,0.00023207,2]
[365779070,1749907847186,-903.0,0.00023221,2]
[365779071,1749907847197,-883.72464176,0.00023254,2]
[365779072,1749907847207,-1500.0,0.00023268,2]
[365779073,1749907847219,-1500.0,0.00023268,2]
[365779074,1749907847228,-203.21945003,0.00023275,8]
[365779075,1749907847238,-460.0,0.00023287,4]
[365779076,1749907847247,-887.18,0.00023287,4]
[365779077,1749907847257,-551.83243371,0.00023287,4]
[365779078,1749907847267,-160.0,0.00023287,4]
[365779079,1749907847278,-460.0,0.00023287,4]
[365779080,1749907847287,-1824.67,0.00023287,4]
[365779081,1749907847296,-460.0,0.00023287,4]
[365779082,1749907847306,-516.72,0.00023287,4]
[365779083,1749907847315,-274.65,0.00023287,4]
[365779084,1749907847325,-469.54096578,0.00023287,4]
[365779085,1749907847336,-460.0,0.00023287,4]
[365779086,1749907847345,-460.0,0.00023287,4]
[365779087,1749907847355,-460.0,0.00023287,4]
[365779088,1749907847364,-460.0,0.00023287,4]
[365779089,1749907847374,-460.0,0.00023287,4]
[365779090,1749907847383,-460.0,0.00023287,4]
[365779091,1749907847394,-460.0,0.00023287,4]
[365779092,1749907847404,-460.0,0.00023287,2]
[365779093,1749907847413,-1726.2,0.00023287,4]
[365779094,1749907847422,-200.51221839,0.00023287,4]
[365779095,1749907847432,-460.0,0.00023287,4]
[365779096,1749907847441,-1116.26,0.00023287,4]
[365779097,1749907847451,-460.0,0.00023287,4]
[365779098,1749907847461,-1164.33,0.00023287,4]
[365779099,1749907847472,-967.63,0.00023287,4]
[365779100,1749907847482,-460.0,0.00023287,4]
[365779101,1749907847492,-460.0,0.00023287,4]
[365779102,1749907847503,-460.0,0.00023287,4]
[365779103,1749907847512,-1309.35,0.00023287,4]
[365779104,1749907847523,-2860.28,0.00023287,4]
[365779105,1749907847533,-460.0,0.00023287,4]
[365779106,1749907847543,-460.0,0.00023287,4]
[365779107,1749907847552,-1665.69,0.00023287,4]
[365779108,1749907847562,-460.0,0.00023287,4]
[365779109,1749907847571,-460.0,0.00023287,4]
[365779110,1749907847583,-460.0,0.00023287,4]
[365779111,1749907847593,-460.0,0.00023287,4]
[365779112,1749907847603,-460.0,0.00023287,4]
[365779113,1749907847613,-659.23,0.00023287,4]
[365779114,1749907847623,-460.0,0.00023287,4]
[365779115,1749907847633,-460.0,0.00023287,4]
[365779116,1749907847643,-460.0,0.00023287,4]
[365779117,1749907847653,-1153.73,0.00023287,4]
[365779118,1749907847663,-460.0,0.00023287,4]
[365779119,1749907847672,-460.0,0.00023287,4]
[365779120,1749907847682,-817.31,0.00023287,4]
[365779121,1749907847691,-1298.61,0.00023287,4]
[365779122,1749907847700,-460.0,0.00023287,4]
[365779123,1749907847710,-500.0,0.00023346,2]
[365779124,1749907847720,-80045.48244983,0.0002335,2]
[365779125,1749907847729,-903.0,0.00023365,2]
[365779126,1749907847738,-2597.42,0.00023369,2]
[365779127,1749907847747,-506.93574518,0.000234,2]
[365779128,1749907847757,-203.21945003,0.000234,9]
[365779129,1749907847766,-1151.0,0.00023401,2]
[365779130,1749907847778,-2672.1,0.00023488,3]
[365779131,1749907847794,-721.52,0.000235,7]
[365779132,1749907847805,-85499.72,0.000235,7]
[365779133,1749907847816,-2557.13,0.000235,7]
[365779134,1749907847827,-164.61023874,0.00023503,5]
[365779135,1749907847837,-181.23601267,0.00023503,5]
[365779136,1749907847847,-1000.0,0.00023521,2]
[365779137,1749907847857,-858.43347066,0.00023521,2]
[365779138,1749907847866,-1002.4400778,0.00023521,2]
[365779139,1749907847875,-1200.0,0.00023521,2]
[365779140,1749907847885,-203.21945003,0.00023525,9]
[365779141,1749907847894,-182.928972,0.0002355,7]
[365779142,1749907847903,-182.928972,0.0002355,7]
[365779143,1749907847912,-160.0,0.0002356,2]
[365779144,1749907847921,-151.0,0.00023561,7]
[365779145,1749907847930,-151.0,0.00023561,7]
[365779146,1749907847939,-206.200067,0.00023561,7]
[365779147,1749907847948,-206.200067,0.00023561,7]
[365779148,1749907847957,-460.0,0.00023561,4]
[365779149,1749907847967,-887.18,0.00023561,4]
[365779150,1749907847976,-359.58033034,0.00023561,4]
[365779151,1749907847986,-1824.67,0.00023561,4]
[365779152,1749907847995,-460.0,0.00023561,4]
[365779153,1749907848005,-516.72,0.00023561,4]
[365779154,1749907848015,-551.21794586,0.00023561,4]
[365779155,1749907848024,-552.7,0.00023561,4]
[365779156,1749907848035,-460.0,0.00023561,4]
[365779157,1749907848044,-362.65460734,0.00023561,4]
[365779158,1749907848054,-460.0,0.00023561,4]
[365779159,1749907848063,-460.0,0.00023561,4]
[365779160,1749907848073,-460.0,0.00023561,4]
[365779161,1749907848083,-592.81103077,0.00023561,2]
[365779162,1749907848092,-1726.2,0.00023561,4]
[365779163,1749907848102,-460.0,0.00023561,4]
[365779164,1749907848112,-1116.26,0.00023561,4]
[365779165,1749907848122,-525.3,0.00023561,4]
[365779166,1749907848132,-1164.33,0.00023561,4]
[365779167,1749907848142,-967.63,0.00023561,4]
[365779168,1749907848152,-373.06880565,0.00023561,4]
[365779169,1749907848162,-460.0,0.00023561,4]
[365779170,1749907848171,-1309.35,0.00023561,4]
[365779171,1749907848182,-2860.28,0.00023561,4]
[365779172,1749907848192,-443.2,0.00023561,4]
[365779173,1749907848201,-460.0,0.00023561,4]
[365779174,1749907848211,-1665.69,0.00023561,4]
[365779175,1749907848220,-205.56155965,0.00023561,4]
[365779176,1749907848301,-460.0,0.00023561,4]
[365779177,1749907848311,-460.0,0.00023561,4]
[365779178,1749907848321,-403.13753151,0.00023561,4]
[365779179,1749907848331,-347.19683907,0.00023561,4]
[365779180,1749907848341,-659.23,0.00023561,4]
[365779181,1749907848353,-460.0,0.00023561,4]
[365779182,1749907848363,-460.0,0.00023561,4]
[365779183,1749907848372,-1153.73,0.00023561,4]
[365779184,1749907848382,-460.0,0.00023561,4]
[365779185,1749907848391,-817.31,0.00023561,4]
[365779186,1749907848400,-1298.61,0.00023561,4]
[365779187,1749907848410,-460.0,0.00023561,4]
[365779188,1749907848420,-1500.0,0.00023568,2]
[365779189,1749907848429,-1003.00162148,0.00023568,2]
[365779190,1749907848439,-6000.0,0.00023586,3]
[365779191,1749907848451,-845.10789306,0.00023586,3]
[365779192,1749907848462,-160.0,0.00023586,3]
[365779193,1749907848472,-151.0,0.000236,7]
[365779194,1749907848482,-151.0,0.000236,7]
[365779195,1749907848492,-182.928972,0.000236,7]
[365779196,1749907848502,-182.928972,0.000236,7]
[365779197,1749907848511,-206.200067,0.000236,7]
[365779198,1749907848521,-206.200067,0.000236,7]
[365779199,1749907848530,-76118.67,0.000236,2]
[365779200,1749907848540,-162389.08434753,0.000236,2]
[365779201,1749907848550,-420.0,0.00023605,2]
[365779202,1749907848561,-903.0,0.00023609,7]
[365779203,1749907848571,-203.21945003,0.0002365,9]
[365779204,1749907848582,-8000.0,0.00023682,3]
[365779205,1749907848592,-91793.11101964,0.00023687,2]
[365779206,1749907848603,-6000.0,0.00023726,3]
[365779207,1749907848612,-845.10789306,0.00023761,2]
[365779208,1749907848623,-150.0,0.00023773,2]
[365779209,1749907848633,-160.0,0.00023773,2]
[365779210,1749907848643,-12533.30537164,0.00023773,2]
[365779211,1749907848653,-160.0,0.00023773,2]
[365779212,1749907848663,-203.21945003,0.00023775,9]
[365779213,1749907848672,-523819.81266192,0.0002378,5]
[365779214,1749907880041,175.0,0.00016438,3]
[365779222,1749908051009,192.28660862,0.0002,2]
[365779223,1749908103096,4712.05169907,0.0002,2]
[365779224,1749908103120,7736.1100957,0.0002,2]
[365779226,1749908154639,-187.94878931,0.00020359,2]
[365779227,1749908154661,-466.495394,0.00020784,2]
[365779228,1749908154682,-300.0,0.00020987,2]
[365779229,1749908154703,-300.0,0.00020987,2]
[365779230,1749908154725,-24900.0,0.00020988,2]
[365779231,1749908154747,-500.0,0.00021154,2]
[365779232,1749908154769,-1267.82,0.00021448,2]
[365779233,1749908154790,-179.50553556,0.00021468,2]
[365779234,1749908163016,539.82253503,0.000215,2]
[365779235,1749908168563,21214.50660454,0.000245,120]
[365779237,1749908195106,1251.68,0.00021433,2]
[365779265,1749908620899,499.78,0.00024657,120]
[365779267,1749908692395,17.9305043,0.0002,2]
[365779268,1749908692422,4360.93594174,0.0002,2]
[365779269,1749908708830,854.67,0.0002,2]
[365779274,1749908747411,389.214941,0.00013699,2]
[365779278,1749908841134,-213.69524621,0.00020087,2]
[365779279,1749908841159,-800.0,0.00020184,2]
[365779280,1749908841181,-389.214941,0.00020187,2]
[365779281,1749908841204,-1863.96239415,0.00020502,2]
[365779282,1749908841227,-164.0,0.00020558,2]
[365779283,1749908841249,-581.61621179,0.0002056,2]
[365779284,1749908841270,-181.484104,0.00020869,2]
[365779285,1749908841294,-213.3145634,0.00020908,2]
[365779286,1749908841317,-199.68571599,0.0002103,2]
[365779287,1749908841338,-160.0,0.0002114,2]
[365779288,1749908841359,-290.45677838,0.00021154,2]
[365779289,1749908841384,-500.0,0.00021154,2]
[365779290,1749908841406,-1348.88,0.0002165,2]
[365779291,1749908841429,-168.0,0.00021669,2]
[365779292,1749908841452,-981.1104295,0.0002168,2]
[365779293,1749908841475,-300.0,0.00021815,2]
[365779294,1749908841498,-243.63336371,0.00021816,2]
[365779295,1749908843087,-956.36663629,0.00021816,2]
[365779296,1749908843108,-300.0,0.00021816,2]
[365779297,1749908843129,-614.05579899,0.00021817,2]
[365779298,1749908843161,-270.03246147,0.00021817,2]
[365779299,1749908843181,-548.94409503,0.00021817,2]
[365779300,1749908843204,-1192.93593225,0.00021853,2]
[365779301,1749908843228,-303.0,0.0002188,2]
[365779302,1749908843250,-300.0,0.00021899,2]
[365779303,1749908843271,-300.0,0.00021899,2]
[365779304,1749908843302,-755.97821817,0.000219,6]
[365779305,1749908843324,-2447.93448574,0.00021906,2]
[365779313,1749908965135,-1386.6272607,0.0002086,2]
[365779314,1749908965159,-500.0,0.00021154,2]
[365779315,1749908965182,-199.83699001,0.00021259,2]
[365779364,1749909032091,-111.05944221,0.00021259,2]
[365779366,1749909032101,-164.61023874,0.00021443,5]
[365779368,1749909032111,-181.23601267,0.00021443,5]
[365779370,1749909032120,-153.30079669,0.00021576,2]
[365779373,1749909032130,-1122.87179217,0.00021658,2]
[365779375,1749909032140,-1331.72,0.00021676,2]
[365779377,1749909032150,-707.2706084,0.00021817,2]
[365779378,1749909032159,-737.55292586,0.000219,6]
[365779381,1749909032168,-22439.31116585,0.000219,2]
[365779383,1749909032178,-175.29521816,0.00021906,2]
[365779385,1749909032187,-264.34,0.00021907,3]
[365779387,1749909032197,-793.03,0.00021907,3]
[365779389,1749909032207,-1200.0,0.00021914,2]
[365779391,1749909032219,-300.0,0.00021915,2]
[365779393,1749909032228,-300.0,0.00021915,2]
[365779395,1749909032239,-300.0,0.00021915,2]
[365779396,1749909032249,-155.916,0.00021916,2]
[365779397,1749909032260,-160.0,0.00021916,2]
[365779398,1749909032270,-500.0,0.00021916,2]
[365779399,1749909032280,-263.7515268,0.00021916,2]
[365779400,1749909032292,-207.288925,0.00021916,2]
[365779401,1749909032303,-500.0,0.00021916,2]
[365779402,1749909032314,-500.0,0.00021916,2]
[365779403,1749909032324,-500.0,0.00021916,2]
[365779404,1749909032334,-500.0,0.00021916,2]
[365779405,1749909032345,-391.7812824,0.00021916,2]
[365779406,1749909032355,-253.69206714,0.00021916,2]
[365779407,1749909032366,-500.0,0.00021916,2]
[365779408,1749909032376,-500.0,0.00021916,2]
[365779409,1749909032386,-500.0,0.00021916,2]
[365779410,1749909032396,-386.13751135,0.00021916,2]
[365779411,1749909032407,-500.0,0.00021916,2]
[365779412,1749909032417,-500.0,0.00021916,2]
[365779413,1749909032427,-500.0,0.00021916,2]
[365779414,1749909032436,-500.0,0.00021916,2]
[365779415,1749909032446,-169.83408303,0.00021916,2]
[365779416,1749909032456,-341.50042635,0.00021916,2]
[365779417,1749909032465,-500.0,0.00021916,2]
[365779418,1749909032475,-500.0,0.00021916,2]
[365779419,1749909032484,-500.0,0.00021916,2]
[365779420,1749909032493,-500.0,0.00021916,2]
[365779421,1749909032619,-500.0,0.00021916,2]
[365779422,1749909032629,-392.96217809,0.00021916,2]
[365779423,1749909032639,-300.0,0.00021916,2]
[365779424,1749909032648,-500.0,0.00021916,2]
[365779425,1749909032658,-500.0,0.00021916,2]
[365779426,1749909032667,-500.0,0.00021916,2]
[365779427,1749909032676,-214.74668937,0.00021916,2]
[365779428,1749909032685,-237.91950672,0.00021916,2]
[365779429,1749909032694,-500.0,0.00021916,2]
[365779430,1749909032703,-500.0,0.00021916,2]
[365779431,1749909032712,-438.68804243,0.00021916,2]
[365779432,1749909032721,-500.0,0.00021917,4]
[365779433,1749909032731,-460.0,0.00021917,4]
[365779434,1749909032740,-460.0,0.00021917,4]
[365779435,1749909032750,-461.05861117,0.00021917,4]
[365779436,1749909032759,-460.0,0.00021917,4]
[365779437,1749909032768,-440.0,0.00021917,4]
[365779438,1749909032778,-440.0,0.00021917,4]
[365779439,1749909032787,-440.0,0.00021917,4]
[365779440,1749909032797,-432.75659421,0.00021917,4]
[365779441,1749909032806,-460.0,0.00021917,4]
[365779442,1749909032816,-402.86698581,0.00021917,4]
[365779443,1749909032825,-430.0,0.00021917,4]
[365779444,1749909032834,-440.0,0.00021917,4]
[365779445,1749909032843,-460.0,0.00021917,4]
[365779446,1749909032853,-420.0,0.00021917,4]
[365779447,1749909032864,-524.1384911,0.00021917,4]
[365779448,1749909032873,-440.0,0.00021917,4]
[365779449,1749909032883,-442.72039857,0.00021917,4]
[365779450,1749909032892,-460.0,0.00021917,4]
[365779451,1749909032902,-460.0,0.00021917,4]
[365779452,1749909032911,-420.0,0.00021917,4]
[365779453,1749909032921,-432.17249315,0.00021917,4]
[365779454,1749909032930,-460.0,0.00021917,4]
[365779455,1749909032939,-430.0,0.00021917,4]
[365779456,1749909032948,-455.96269975,0.00021917,4]
[365779457,1749909032958,-460.0,0.00021917,4]
[365779458,1749909032967,-460.0,0.00021917,4]
[365779459,1749909032976,-460.0,0.00021917,4]
[365779460,1749909032986,-507.43752263,0.00021917,4]
[365779461,1749909032995,-460.0,0.00021917,4]
[365779462,1749909033004,-440.0,0.00021917,4]
[365779463,1749909033014,-440.0,0.00021917,4]
[365779464,1749909033024,-440.0,0.00021917,4]
[365779465,1749909033034,-440.0,0.00021917,4]
[365779466,1749909033044,-440.0,0.00021917,4]
[365779467,1749909033053,-430.0,0.00021917,4]
[365779468,1749909033063,-440.0,0.00021917,4]
[365779469,1749909033072,-402.56600553,0.00021917,4]
[365779470,1749909033082,-460.0,0.00021917,4]
[365779471,1749909033091,-440.0,0.00021917,4]
[365779472,1749909033100,-460.0,0.00021917,4]
[365779473,1749909033110,-440.0,0.00021917,4]
[365779474,1749909033119,-460.0,0.00021917,4]
[365779475,1749909033128,-460.0,0.00021917,4]
[365779476,1749909033137,-460.0,0.00021917,4]
[365779477,1749909033146,-430.0,0.00021917,4]
[365779478,1749909033155,-450.39544778,0.00021917,4]
[365779479,1749909033165,-470.0,0.00021917,4]
[365779480,1749909033174,-373.02435162,0.00021917,4]
[365779481,1749909033184,-460.0,0.00021917,4]
[365779482,1749909033194,-460.0,0.00021917,4]
[365779483,1749909033203,-373.0676339,0.00021917,4]
[365779484,1749909033212,-460.0,0.00021917,4]
[365779485,1749909033224,-368.32170513,0.00021917,4]
[365779486,1749909033235,-460.0,0.00021917,4]
[365779487,1749909033245,-435.14217615,0.00021917,4]
[365779488,1749909033254,-460.0,0.00021917,4]
[365779489,1749909033263,-460.0,0.00021917,4]
[365779490,1749909033273,-460.0,0.00021917,4]
[365779491,1749909033282,-450.0,0.00021917,4]
[365779492,1749909033293,-490.0,0.00021917,4]
[365779493,1749909033304,-450.0,0.00021917,4]
[365779494,1749909033314,-460.0,0.00021917,4]
[365779495,1749909033324,-460.0,0.00021917,4]
[365779496,1749909033333,-430.0,0.00021917,4]
[365779497,1749909033342,-440.0,0.00021917,4]
[365779498,1749909033352,-430.0,0.00021917,4]
[365779499,1749909033362,-436.93029418,0.00021917,4]
[365779500,1749909033372,-460.0,0.00021917,4]
[365779501,1749909033383,-434.37216938,0.00021917,4]
[365779502,1749909033392,-460.0,0.00021917,4]
[365779503,1749909033402,-460.0,0.00021917,4]
[365779504,1749909033411,-460.0,0.00021917,4]
[365779505,1749909033421,-430.0,0.00021917,4]
[365779506,1749909033430,-165.91,0.00021917,4]
[365779507,1749909033440,-460.0,0.00021917,4]
[365779508,1749909033450,-120.67941481,0.00021917,4]
[365779509,1749909033650,-339.32058519,0.00021917,4]
[365779510,1749909033660,-460.0,0.00021917,4]
[365779511,1749909033670,-400.0,0.00021917,4]
[365779512,1749909033679,-460.0,0.00021917,4]
[365779513,1749909033688,-430.0,0.00021917,4]
[365779514,1749909033698,-500.0,0.00021917,4]
[365779515,1749909033707,-500.0,0.00021917,4]
[365779516,1749909033716,-460.0,0.00021917,4]
[365779517,1749909033725,-19.19416445,0.00021917,4]
[365779518,1749909033738,-440.80583555,0.00021917,4]
[365779519,1749909033748,-423.6857012,0.00021917,4]
[365779520,1749909033758,-460.0,0.00021917,4]
[365779521,1749909033768,-460.0,0.00021917,4]
[365779522,1749909033777,-440.0,0.00021917,4]
[365779523,1749909033787,-400.90681113,0.00021917,4]
[365779524,1749909033796,-177.81475002,0.00021917,4]
[365779525,1749909033806,-460.0,0.00021917,4]
[365779526,1749909033815,-418.61908252,0.00021917,4]
[365779527,1749909033826,-460.0,0.00021917,4]
[365779528,1749909033836,-432.42692126,0.00021917,4]
[365779529,1749909033846,-460.0,0.00021917,4]
[365779530,1749909033858,-500.0,0.00021917,4]
[365779531,1749909033868,-460.0,0.00021917,4]
[365779532,1749909033878,-268.49786008,0.00021917,4]
[365779533,1749909033892,-181.50213992,0.00021917,4]
[365779534,1749909033902,-460.0,0.00021917,4]
[365779535,1749909033913,-460.0,0.00021917,4]
[365779536,1749909033922,-440.0,0.00021917,4]
[365779537,1749909033933,-454.0935569,0.00021917,4]
[365779538,1749909033944,-176.841,0.00021917,2]
[365779539,1749909033955,-460.0,0.00021917,4]
[365779540,1749909033965,-460.0,0.00021917,4]
[365779541,1749909033975,-460.0,0.00021917,4]
[365779542,1749909033985,-460.0,0.00021917,4]
[365779543,1749909033995,-460.0,0.00021917,4]
[365779544,1749909034005,-430.0,0.00021917,4]
[365779545,1749909034015,-460.0,0.00021917,4]
[365779546,1749909034025,-440.0,0.00021917,4]
[365779547,1749909034034,-460.0,0.00021917,4]
[365779548,1749909034044,-460.0,0.00021917,4]
[365779549,1749909034054,-460.0,0.00021917,4]
[365779550,1749909034063,-432.85413838,0.00021917,4]
[365779551,1749909034073,-460.0,0.00021917,4]
[365779552,1749909034083,-460.0,0.00021917,4]
[365779553,1749909034093,-460.0,0.00021917,4]
[365779554,1749909034102,-460.0,0.00021917,4]
[365779555,1749909034113,-460.0,0.00021917,4]
[365779556,1749909034123,-200.8691648,0.00021917,4]
[365779557,1749909034140,-259.1308352,0.00021917,4]
[365779558,1749909034149,-460.0,0.00021917,4]
[365779559,1749909034159,-106.56623394,0.00021917,4]
[365779607,1749909038035,-353.43376606,0.00021917,4]
[365779610,1749909038046,-460.0,0.00021917,4]
[365779612,1749909038056,-460.0,0.00021917,4]
[365779614,1749909038066,-460.0,0.00021917,4]
[365779616,1749909038076,-460.0,0.00021917,4]
[365779618,1749909038086,-430.0,0.00021917,4]
[365779620,1749909038097,-460.0,0.00021917,4]
[365779622,1749909038107,-430.0,0.00021917,4]
[365779624,1749909038119,-1150.54,0.00021917,4]
[365779626,1749909038130,-280.69362332,0.00021917,4]
[365779628,1749909038140,-173.20646679,0.00021917,4]
[365779630,1749909038151,-460.0,0.00021917,4]
[365779632,1749909038161,-460.0,0.00021917,4]
[365779634,1749909038172,-460.0,0.00021917,4]
[365779636,1749909038184,-460.0,0.00021917,4]
[365779638,1749909038194,-434.85188377,0.00021917,4]
[365779640,1749909038204,-460.0,0.00021917,4]
[365779642,1749909038219,-431.10680584,0.00021917,4]
[365779644,1749909038228,-440.0,0.00021917,4]
[365779647,1749909038239,-460.0,0.00021917,4]
[365779649,1749909038249,-460.0,0.00021917,4]
[365779651,1749909038260,-460.0,0.00021917,4]
[365779653,1749909038270,-400.0,0.00021917,4]
[365779655,1749909038280,-450.0,0.00021917,4]
[365779657,1749909038290,-460.0,0.00021917,4]
[365779659,1749909038302,-437.06282783,0.00021917,4]
[365779661,1749909038312,-460.0,0.00021917,4]